bitfinex-derivatives/quotes_ETHF0:USTF0_20250928
["timestamp","ask_amount","ask_price","bid_price","bid_amount"]
[1759059087544,0.31986386,3990.9,3990.8,51.5478]
[1759059088754,5.74356386,3990.9,3990.8,12.2078]
[1759059088954,5.74356386,3990.9,3990.8,12.4608]
[1759059089157,5.74356386,3990.9,3990.8,12.2078]
[1759059089457,5.74356386,3990.9,3990.8,12.4608]
[1759059089855,5.74356386,3990.9,3990.8,12.2078]
[1759059090151,5.74356386,3990.9,3990.8,12.4608]
[1759059091857,5.74356386,3990.9,3990.8,9.0]
[1759059092055,5.42676386,3990.9,3990.8,6.1723]
[1759059092357,5.00306386,3990.9,3990.8,2.2272]
[1759059092560,5.51164483,3990.9,3990.8,2.4802]
[1759059092952,8.71944483,3990.9,3990.8,2.4802]
[1759059095761,8.71944483,3990.9,3990.8,2.2272]
[1759059096066,8.71944483,3990.9,3990.8,2.4802]
[1759059098964,8.71944483,3990.9,3990.8,2.2272]
[1759059099562,3.71944483,3990.9,3990.8,2.2272]
[1759059101372,3.71944483,3990.9,3990.8,2.4438]
[1759059102361,3.71944483,3990.9,3990.8,2.6684]
[1759059108470,3.21086386,3990.9,3990.8,2.9214]
[1759059109573,0.00306386,3990.9,3990.8,2.9214]
[1759059117677,0.00306386,3990.9,3990.8,2.6684]
[1759059117877,0.00306386,3990.9,3990.8,2.9214]
[1759059118178,0.51189999,3990.9,3990.8,2.9214]
[1759059118777,0.00306386,3990.9,3990.8,2.9214]
[1759059121277,0.51215646,3990.9,3990.8,2.9214]
[1759059121778,0.51215646,3990.9,3990.8,2.6684]
[1759059121972,0.51215646,3990.9,3990.8,2.9214]
[1759059122371,0.51215646,3990.9,3990.8,2.6684]
[1759059122581,5.51215646,3990.9,3990.8,2.9214]
[1759059122780,5.51215646,3990.9,3990.8,2.6684]
[1759059132476,14.81215646,3990.9,3990.5,0.1312]
[1759059132670,3.2078,3990.6,3990.5,0.5826]
[1759059132869,3.9698926,3990.6,3990.5,0.5826]
[1759059134280,3.9698926,3990.6,3990.5,0.9095]
[1759059140481,17.3898926,3990.6,3989.5,0.1273]
[1759059140788,3.2078,3989.6,3989.5,0.5787]
[1759059141378,3.71631505,3989.6,3989.5,0.5787]
[1759059142492,3.71631505,3989.6,3989.5,0.9056]
[1759059143591,3.96931505,3989.6,3989.5,0.9056]
[1759059149194,9.50931505,3989.6,3989.0,0.1088]
[1759059149388,3.2078,3989.1,3989.0,0.5493]
[1759059149595,3.71631505,3989.1,3989.0,0.5493]
[1759059150398,3.71631505,3989.1,3989.0,0.55148845]
[1759059151193,3.71631505,3989.1,3989.0,0.87288845]
[1759059163295,3.71527104,3989.1,3989.0,0.87288845]
[1759059167696,3.2078,3989.1,3989.0,5.87288845]
[1759059172104,3.2078,3989.1,3989.0,6.12588845]
[1759059174693,40.8,3990.6,3989.4,0.4235]
[1759059174694,3.2078,3989.5,3989.4,0.4235]
[1759059174898,3.7163914,3989.5,3989.4,0.7441]
[1759059177413,3.2078,3989.5,3989.4,0.7441]
[1759059178701,3.2078,3989.5,3989.4,5.7441]
[1759059179707,3.2078,3989.5,3989.4,5.9971]
[1759059181306,3.2078,3989.5,3989.4,5.7441]
[1759059181506,3.2078,3989.5,3989.4,5.9971]
[1759059182914,3.2078,3989.5,3989.4,5.7441]
[1759059183209,3.2078,3989.5,3989.4,5.9971]
[1759059183404,3.2078,3989.9,3989.8,0.4235]
[1759059183605,3.2078,3989.9,3989.8,0.9971]
[1759059184600,3.71578035,3989.9,3989.8,0.7441]
[1759059188304,3.71578035,3989.9,3989.8,0.5339]
[1759059188504,3.71578035,3989.9,3989.8,0.7441]
[1759059189110,3.96878035,3989.9,3989.8,0.7441]
[1759059191704,18.95878035,3989.9,3989.5,0.1246]
[1759059191912,5.50798035,3989.8,3989.5,0.1246]
[1759059192109,0.76098035,3989.7,3989.5,0.1246]
[1759059192306,0.50798035,3989.6,3989.0,0.11098845]
[1759059192505,3.2078,3989.1,3989.0,0.11098845]
[1759059192703,3.71578035,3989.1,3989.0,0.11098845]
[1759059193011,3.96878035,3989.1,3989.0,0.11098845]
[1759059193710,3.96878035,3989.1,3989.0,0.42638845]
[1759059195507,3.96878035,3989.1,3989.0,0.64708845]
[1759059196498,3.96878035,3989.1,3989.0,0.87508845]
[1759059197905,3.71578035,3989.1,3989.0,0.87508845]
[1759059198107,3.2078,3989.1,3989.0,5.87508845]
[1759059208715,3.2078,3989.5,3989.1,0.3111]
[1759059208922,3.2078,3989.5,3989.4,0.7595]
[1759059209116,3.2078,3989.9,3989.8,0.4484]
[1759059209420,3.71621012,3989.9,3989.8,0.7595]
[1759059210616,3.4608,3990.3,3989.8,0.7595]
[1759059210820,0.50839689,3990.2,3990.1,0.7595]
[1759059215228,3.71625586,3990.2,3990.1,0.7595]
[1759059222238,3.2078,3990.2,3990.1,0.7595]
[1759059232153,3.2078,3990.6,3990.5,0.8888]
[1759059232354,3.2078,3990.6,3990.5,1.1418]
[1759059232551,3.2078,3990.6,3990.5,6.1418]
[1759059232751,0.00306386,3990.9,3990.8,0.7595]
[1759059234662,0.00306386,3990.9,3990.8,1.0125]
[1759059237263,0.00306386,3990.9,3990.8,0.7595]
[1759059237451,0.00306386,3990.9,3990.8,1.0125]
[1759059238158,0.00306386,3990.9,3990.8,0.7595]
[1759059238359,0.00306386,3990.9,3990.8,1.0125]
[1759059240564,0.00306386,3990.9,3990.8,0.7595]
[1759059240763,5.00306386,3990.9,3990.8,0.3111]
[1759059241064,5.51142125,3990.9,3990.8,0.3111]
[1759059241461,5.76442125,3990.9,3990.8,0.3111]
[1759059242966,11.98442125,3990.9,3990.8,0.3111]
[1759059243162,11.98442125,3990.9,3990.5,0.1293]
[1759059243467,3.2078,3990.6,3990.5,0.1293]
[1759059243658,3.96915739,3990.6,3990.5,0.1293]
[1759059244262,3.2078,3995.2,3990.5,45.3381]
[1759059244459,5.81732795,3995.7,3993.2,0.2261]
[1759059244663,5.81732795,3995.7,3992.8,3.2078]
[1759059244664,18.70612983,3996.4,3995.5,0.1368]
[1759059244967,6.26,3997.1,3997.0,0.1368]
[1759059245263,23.96091956,3997.1,3997.0,4.22058217]
[1759059245471,42.66144939,3997.1,3997.0,5.95756178]
[1759059245768,42.66144939,3997.1,3997.0,5.9503728]
[1759059246156,42.66144939,3997.1,3997.0,4.6115595]
[1759059246368,6.26190912,3997.1,3997.0,4.22058217]
[1759059246562,42.66144939,3997.1,3997.0,4.22058217]
[1759059246754,42.66144939,3997.1,3997.0,4.50858217]
[1759059247159,42.66144939,3997.1,3997.0,5.55469966]
[1759059247360,42.66144939,3997.1,3997.0,5.84369966]
[1759059248165,6.26190912,3997.1,3997.0,5.55469966]
[1759059248368,6.26190912,3997.1,3997.0,5.84269966]
[1759059248667,6.26190912,3997.1,3997.0,4.50858217]
[1759059249169,6.26190912,3997.1,3997.0,5.84269966]
[1759059249666,6.26190912,3997.1,3997.0,4.50858217]
[1759059250456,53.91584939,3997.1,3997.0,1.89552023]
[1759059250656,29.32410912,3997.1,3995.4,0.66227411]
[1759059250861,3.2078,3995.5,3995.0,0.1931]
[1759059251066,3.2078,3996.0,3995.5,0.1341]
[1759059251362,3.2078,3995.6,3995.5,0.1341]
[1759059251566,20.24454687,3995.6,3995.5,0.1371108]
[1759059257066,20.24454687,3995.6,3995.5,0.1341]
[1759059257973,20.24454687,3995.6,3995.5,0.13656183]
[1759059258271,25.24454687,3995.6,3995.5,0.13656183]
[1759059261069,20.24454687,3995.6,3995.5,0.13656183]
[1759059263378,25.24454687,3995.6,3995.5,0.44826183]
[1759059264673,25.24454687,3995.6,3995.5,0.13656183]
[1759059264874,17.2078,3995.6,3995.0,0.1341]
[1759059265077,20.24454687,3995.1,3994.7,0.3117]
[1759059265273,17.03674687,3994.8,3994.7,0.3117]
[1759059265580,17.32074687,3994.8,3994.7,0.3117]
[1759059265872,17.32074687,3994.8,3994.7,0.31373826]
[1759059274186,17.32074687,3994.8,3994.7,1.03670751]
[1759059275487,18.35574687,3994.8,3994.7,1.03670751]
[1759059277978,18.35574687,3994.8,3994.7,1.30610751]
[1759059278588,18.35574687,3994.8,3994.7,1.03670751]
[1759059279885,1.319,3994.8,3994.7,1.03670751]
[1759059280082,18.35574687,3994.8,3994.7,1.03670751]
[1759059281890,18.35574687,3994.8,3994.7,0.31373826]
[1759059282490,3.2078,3994.7,3994.0,0.1333]
[1759059282685,20.24454687,3994.1,3994.0,0.1333]
[1759059282885,61.32354687,3994.1,3993.5,0.3989]
[1759059283086,3.2078,3993.6,3993.5,0.3989]
[1759059283293,3.4868,3993.6,3993.5,0.3989]
[1759059283491,3.49005502,3993.6,3993.5,0.40179804]
[1759059283992,3.49005502,3993.6,3993.5,0.65299804]
[1759059284383,3.49005502,3993.6,3993.5,0.13239804]
[1759059284583,20.52680189,3993.6,3993.5,0.13239804]
[1759059286989,30.07680189,3993.6,3993.0,0.1295]
[1759059287288,20.24454687,3993.1,3993.0,0.1295]
[1759059287489,20.52354687,3993.1,3993.0,0.1295]
[1759059288095,20.52354687,3993.1,3993.0,0.13203737]
[1759059288694,20.24454687,3993.1,3993.0,0.13203737]
[1759059288891,20.52254687,3993.1,3993.0,0.13203737]
[1759059291688,20.52254687,3993.1,3993.0,0.40143737]
[1759059291888,20.52254687,3993.1,3993.0,0.13203737]
[1759059293292,3.4858,3993.1,3993.0,0.65263737]
[1759059293594,3.4858,3993.1,3993.0,1.05223737]
[1759059297695,30.51254687,3993.1,3993.0,0.13203737]
[1759059298593,30.51254687,3993.1,3993.0,0.00253737]
[1759059299300,71.31254687,3993.1,3993.0,0.00253737]
[1759059299691,71.31254687,3993.1,3993.0,0.56373737]
[1759059300790,44.2838,3993.1,3993.0,1.07693737]
[1759059302901,3.4838,3993.1,3993.0,1.07693737]
[1759059303802,3.4838,3993.1,3993.0,3.36768086]
[1759059305392,3.2078,3993.1,3993.0,3.36768086]
[1759059305598,3.4828,3993.1,3993.0,3.36768086]
[1759059312197,3.4828,3993.1,3993.0,0.56373737]
[1759059312400,31.31954687,3993.1,3992.7,0.3648]
[1759059312595,17.03674687,3992.6,3992.5,0.4943]
[1759059312797,3.4818,3992.6,3992.5,3.28214349]
[1759059313401,3.4818,3992.6,3992.5,3.28463129]
[1759059314000,20.51854687,3992.6,3992.5,0.4967878]
[1759059315904,20.51854687,3992.6,3992.5,0.7375878]
[1759059316605,20.51854687,3992.6,3992.5,0.4967878]
[1759059318803,3.2078,3992.6,3992.5,3.28463129]
[1759059319003,3.4808,3992.6,3992.5,3.28463129]
[1759059323904,3.2078,3992.6,3992.5,3.28463129]
[1759059324208,3.2078,3992.6,3992.5,8.28463129]
[1759059325106,0.272,3992.9,3992.6,0.3831]
[1759059325303,0.272,3992.9,3992.8,3.18604349]
[1759059325501,3.4798,3992.9,3992.8,3.18604349]
[1759059328001,3.4788,3992.9,3992.8,3.18604349]
[1759059328308,3.2078,3992.9,3992.8,8.18604349]
[1759059328903,3.2078,3992.9,3992.8,3.18604349]
[1759059329113,20.24454687,3992.9,3992.8,3.18604349]
[1759059331016,20.51554687,3992.9,3992.8,3.18604349]
[1759059335709,20.51554687,3992.9,3992.8,0.3831]
[1759059337717,20.51454687,3992.9,3992.8,0.6398]
[1759059338617,20.51454687,3992.9,3992.8,3.18604349]
[1759059339117,3.4778,3992.9,3992.8,3.18604349]
[1759059340115,20.51454687,3992.9,3992.8,0.3831]
[1759059344819,29.97454687,3992.9,3992.6,0.3831]
[1759059345018,12.9378,3992.9,3992.6,0.3831]
[1759059345218,17.03674687,3992.7,3992.6,0.3831]
[1759059345419,17.30574687,3992.7,3992.6,0.3831]
[1759059346014,17.30574687,3992.7,3992.6,0.6398]
[1759059346320,17.30574687,3992.7,3992.6,0.8953]
[1759059348922,17.30574687,3992.7,3992.6,0.6398]
[1759059349119,17.30574687,3992.7,3992.6,0.3831]
[1759059350723,17.30574687,3992.7,3992.5,0.5150878]
[1759059350918,17.03674687,3992.6,3992.5,0.5150878]
[1759059351623,17.03674687,3992.6,3992.5,0.7717878]
[1759059353924,0.269,3992.7,3992.5,3.06253129]
[1759059354124,17.03674687,3992.6,3992.5,1.0321878]
[1759059354628,0.269,3992.7,3992.6,0.3971]
[1759059355020,17.30574687,3992.7,3992.6,0.3971]
[1759059360826,23.54574687,3992.7,3992.6,0.3971]
[1759059361231,23.54574687,3992.7,3992.5,0.0024878]
[1759059361435,0.2022,3991.6,3991.0,0.1588]
[1759059361731,3.418,3991.1,3991.0,0.6608]
[1759059361928,3.684,3991.1,3991.0,0.6608]
[1759059362136,3.684,3991.1,3991.0,2.95154349]
[1759059362437,4.18092519,3991.1,3991.0,2.95338013]
[1759059363437,4.18092519,3991.1,3991.0,3.35048013]
[1759059363644,3.97072519,3991.1,3991.0,3.35048013]
[1759059364646,4.18092519,3991.1,3991.0,3.10408013]
[1759059365636,4.24662519,3991.1,3991.0,2.84848013]
[1759059366037,21.28337206,3991.1,3991.0,0.55773664]
[1759059368546,21.28337206,3991.1,3990.6,0.502]
[1759059368547,0.1051,3990.7,3990.6,0.502]
[1759059368846,4.18092519,3990.7,3990.6,0.502]
[1759059369047,4.18092519,3990.7,3990.6,2.79274349]
[1759059369348,4.18092519,3990.7,3990.6,3.18984349]
[1759059369551,4.18369959,3990.7,3990.6,3.19206919]
[1759059370448,4.07859959,3990.7,3990.6,3.19206919]
[1759059372241,4.07859959,3990.7,3990.6,0.9013257]
[1759059372441,4.07859959,3990.7,3990.6,3.19206919]
[1759059372650,4.17899959,3990.7,3990.6,3.19206919]
[1759059377456,4.07859959,3990.7,3990.6,3.19206919]
[1759059378351,3.70749959,3990.7,3990.6,3.19206919]
[1759059378555,3.97117243,3990.7,3990.6,3.19206919]
[1759059380656,0.76337243,3990.7,3990.6,3.19206919]
[1759059380950,3.97117243,3990.7,3990.6,3.19206919]
[1759059382456,4.17197243,3990.7,3990.6,3.19206919]
[1759059383157,4.07157243,3990.7,3990.6,3.19206919]
[1759059385359,3.97117243,3990.7,3990.6,3.19206919]
[1759059385758,3.97117243,3990.7,3990.6,0.9013257]
[1759059386060,3.97117243,3990.7,3990.6,3.19206919]
[1759059388860,4.06257243,3990.7,3990.6,3.19206919]
[1759059389963,3.97117243,3990.7,3990.6,3.19206919]
[1759059390663,3.70617243,3990.7,3990.6,3.19206919]
[1759059391751,3.79757243,3990.7,3990.6,3.19206919]
[1759059391960,4.15197243,3990.7,3990.6,3.19206919]
[1759059392358,4.06057243,3990.7,3990.6,3.19206919]
[1759059395164,0.85277243,3990.7,3990.6,3.19206919]
[1759059395467,4.06057243,3990.7,3990.6,3.19206919]
[1759059397370,0.76137243,3990.7,3990.6,3.19206919]
[1759059399372,3.96917243,3990.7,3990.6,3.19206919]
[1759059400269,4.06057243,3990.7,3990.6,3.19206919]
[1759059400660,21.1887193,3990.7,3990.6,3.19206919]
[1759059400865,21.2458193,3990.7,3990.6,2.69006919]
[1759059404877,21.2458193,3990.7,3990.6,0.0022257]
[1759059405764,21.2458193,3990.7,3990.6,0.3555257]
[1759059405968,21.2458193,3990.7,3990.6,0.6000257]
[1759059406172,21.1887193,3990.7,3990.6,0.6000257]
[1759059406369,21.2458193,3990.7,3990.6,0.6000257]
[1759059406674,21.2458193,3990.7,3990.6,0.3555257]
[1759059407373,21.2458193,3990.7,3990.6,0.0022257]
[1759059407963,21.2458193,3990.7,3990.6,0.3555257]
[1759059409577,21.1887193,3990.7,3990.6,0.6000257]
[1759059409773,21.1887193,3990.7,3990.6,3.14386919]
[1759059409974,21.19365394,3990.7,3990.6,3.14386919]
[1759059410574,20.93065394,3990.7,3990.6,3.14386919]
[1759059410770,3.97310707,3990.7,3990.6,3.14386919]
[1759059413975,3.71110707,3990.7,3990.6,3.14386919]
[1759059414178,3.71110707,3990.7,3990.6,8.14386919]
[1759059415580,3.71105445,3990.7,3990.6,8.14386919]
[1759059417485,3.71105445,3990.7,3990.6,5.8531257]
[1759059417783,3.71105445,3990.7,3990.6,8.14386919]
[1759059422883,0.50325445,3990.7,3990.6,8.14386919]
[1759059425782,0.50325445,3990.7,3990.6,8.40486919]
[1759059427189,3.2078,3991.1,3991.0,0.6365]
[1759059427392,3.5397,3991.6,3991.5,1.0222]
[1759059427877,20.64734687,3991.6,3991.5,1.0222]
[1759059428278,20.64957268,3991.6,3991.5,1.0222]
[1759059428474,20.38857268,3991.6,3991.5,1.0222]
[1759059429681,20.43287268,3991.6,3991.5,0.7707]
[1759059429978,3.39612581,3991.6,3991.5,0.7707]
[1759059430174,20.43287268,3991.6,3991.5,0.7707]
[1759059431088,20.43287268,3991.6,3991.5,0.3857]
[1759059431289,0.1846,3991.2,3991.0,0.1423]
[1759059431490,17.27904687,3991.2,3991.1,0.3794]
[1759059431788,0.1846,3991.2,3991.1,0.6219]
[1759059431988,17.22134687,3991.2,3991.1,0.6219]
[1759059432190,17.27904687,3991.2,3991.1,0.6219]
[1759059432389,17.22134687,3991.2,3991.1,0.6219]
[1759059432890,17.27904687,3991.2,3991.1,0.3794]
[1759059433092,0.2423,3990.9,3990.6,0.3816257]
[1759059433289,17.22134687,3990.7,3990.6,0.3816257]
[1759059433491,17.27904687,3990.7,3990.6,0.3816257]
[1759059434386,17.54004687,3990.7,3990.6,0.3816257]
[1759059436590,17.48234687,3990.7,3990.6,0.6241257]
[1759059439187,17.98066354,3990.7,3990.6,0.6241257]
[1759059439794,18.03836354,3990.7,3990.6,0.3816257]
[1759059440193,18.03836354,3990.7,3990.6,0.0022257]
[1759059440393,18.03836354,3990.7,3990.6,0.3816257]
[1759059442782,18.03836354,3990.7,3990.6,0.0022257]
[1759059442993,27.28116354,3990.7,3990.6,0.0022257]
[1759059444697,22.28116354,3990.7,3990.6,0.0022257]
[1759059444997,22.28116354,3990.7,3990.6,0.3527257]
[1759059445297,22.28116354,3990.7,3990.6,0.0022257]
[1759059447599,27.28116354,3990.7,3990.6,0.0022257]
[1759059448003,27.28116354,3990.7,3990.0,0.3505]
[1759059448004,0.0521,3990.6,3990.0,0.3505]
[1759059448193,17.25564687,3990.1,3990.0,0.3505]
[1759059448393,19.04996354,3990.1,3990.0,0.3505]
[1759059449098,19.04996354,3990.1,3990.0,0.35333917]
[1759059449290,19.04996354,3990.1,3990.0,0.50113917]
[1759059449688,18.99786354,3990.1,3990.0,0.74363917]
[1759059451091,19.04996354,3990.1,3990.0,0.74363917]
[1759059451287,19.04996354,3990.1,3990.0,0.50113917]
[1759059456404,22.30139851,3990.1,3990.0,0.00283917]
[1759059456608,22.37973953,3990.1,3990.0,0.00283917]
[1759059457001,22.33610456,3990.1,3990.0,0.50113917]
[1759059457402,22.33610456,3990.1,3990.0,0.35333917]
[1759059458209,22.33610456,3990.1,3990.0,0.00283917]
[1759059459711,22.33610356,3990.1,3990.0,0.00283917]
[1759059459912,0.2071,3989.3,3989.2,0.3505]
[1759059460211,19.11650356,3989.3,3989.2,0.3505]
[1759059460412,2.07975669,3989.3,3989.2,0.3505]
[1759059460804,2.07975669,3989.3,3989.2,0.35304136]
[1759059461816,2.03045669,3989.3,3989.2,0.59554136]
[1759059462007,19.06720356,3989.3,3989.2,0.59554136]
[1759059465115,19.11650356,3989.3,3989.2,0.59554136]
[1759059467811,19.06720356,3989.3,3989.2,0.59554136]
[1759059469519,19.06720356,3989.3,3989.2,0.83504136]
[1759059471822,1.61165669,3989.3,3989.2,0.83504136]
[1759059472621,1.69055669,3989.3,3989.2,0.83504136]
[1759059473723,1.76945669,3989.3,3989.2,0.83504136]
[1759059475830,1.80605669,3989.3,3989.2,0.35304136]
[1759059477127,18.84280356,3989.3,3989.2,0.35304136]
[1759059478214,18.80620356,3989.3,3989.2,0.35304136]
[1759059478424,18.80620356,3989.3,3989.2,0.58084136]
[1759059478820,1.87165669,3989.3,3989.2,0.81374136]
[1759059481329,1.61165669,3989.3,3989.2,0.81374136]
[1759059481628,1.67025669,3989.3,3989.2,0.81374136]
[1759059481832,1.61165669,3989.3,3989.2,0.81374136]
[1759059483427,1.61260668,3989.3,3989.2,0.81374136]
[1759059484018,1.67120668,3989.3,3989.2,0.81374136]
[1759059484631,1.72980668,3989.3,3989.2,0.81374136]
[1759059487323,1.72980668,3989.3,3989.2,0.58084136]
[1759059487532,1.76640668,3989.3,3989.2,0.58084136]
[1759059488834,1.72980668,3989.3,3989.2,0.58084136]
[1759059491732,18.79605355,3989.3,3989.2,0.35304136]
[1759059493334,18.76655355,3989.3,3989.2,0.58644136]
[1759059497339,1.67120668,3989.3,3989.2,0.81594136]
[1759059497539,1.61260668,3989.3,3989.2,0.81594136]
[1759059498038,1.61260849,3989.3,3989.2,0.81594136]
[1759059500638,1.61260786,3989.3,3989.2,0.81594136]
[1759059502444,1.65980786,3989.3,3989.2,0.81594136]
[1759059505937,1.61260786,3989.3,3989.2,0.81594136]
[1759059506238,1.1133412,3989.3,3989.2,9.02374136]
[1759059507536,1.03210751,3989.3,3989.2,9.02374136]
[1759059509743,3.2078,3990.2,3989.2,9.02374136]
[1759059509947,3.2078,3990.2,3990.0,0.3766]
[1759059509948,0.57621654,3990.1,3990.0,0.3766]
[1759059510145,0.65721654,3990.1,3990.0,0.3766]
[1759059510446,17.69396341,3990.1,3990.0,0.7151]
[1759059511736,17.71806341,3990.1,3990.0,0.7151]
[1759059511935,17.71806341,3990.1,3990.0,0.4882]
[1759059512840,0.0241,3989.6,3989.5,0.3385]
[1759059513147,17.63706341,3989.6,3989.5,0.3385]
[1759059513444,17.69396341,3989.6,3989.5,0.9558]
[1759059513644,0.58001654,3989.6,3989.5,0.9558]
[1759059514348,0.61861654,3989.6,3989.5,0.9558]
[1759059517051,0.65721654,3989.6,3989.5,0.9558]
[1759059518847,17.69396341,3989.6,3989.5,0.9558]
[1759059519846,0.65721654,3989.6,3989.5,0.9558]
[1759059520049,0.65721654,3989.6,3989.3,0.3385]
[1759059520249,0.1013,3989.3,3989.2,0.34104136]
[1759059520745,17.63706341,3989.3,3989.2,0.34104136]
[1759059520946,17.63706341,3989.3,3989.2,0.00254136]
[1759059521149,17.63706341,3989.3,3989.2,0.34104136]
[1759059521848,17.71540726,3989.3,3989.2,0.34104136]
[1759059522754,17.71520881,3989.3,3989.2,0.34104136]
[1759059524055,17.79620881,3989.3,3989.2,0.34104136]
[1759059525159,17.77210881,3989.3,3989.2,0.56794136]
[1759059526948,17.79620881,3989.3,3989.2,0.56794136]
[1759059528458,17.77210881,3989.3,3989.2,0.56794136]
[1759059529657,17.79620881,3989.3,3989.2,0.56794136]
[1759059529859,17.79620881,3989.3,3989.2,0.34104136]
[1759059530657,17.79633921,3989.3,3989.2,0.34104136]
[1759059530953,17.77223921,3989.3,3989.2,0.56794136]
[1759059531661,17.79633921,3989.3,3989.2,0.00254136]
[1759059533858,17.79633921,3989.3,3989.2,0.34264136]
[1759059534655,17.77223921,3989.3,3989.2,0.57084136]
[1759059536455,0.73549234,3989.3,3989.2,0.79574136]
[1759059536656,0.65829234,3989.3,3989.2,0.79574136]
[1759059537661,0.65829037,3989.3,3989.2,0.79574136]
[1759059538771,0.65829037,3989.3,3989.2,4.00354136]
[1759059539069,0.15934188,3989.3,3989.2,4.00354136]
[1759059539261,0.6599638,3989.3,3989.2,4.00354136]
[1759059540367,0.15934188,3989.3,3989.2,9.00354136]
[1759059540866,0.15934188,3989.3,3989.2,9.26354136]
[1759059541958,0.15934188,3989.3,3989.2,4.26354136]
[1759059544071,0.15934188,3989.3,3989.2,4.00354136]
[1759059544271,0.15934188,3989.3,3989.2,4.26354136]
[1759059546169,0.15934188,3989.3,3989.2,9.28572351]
[1759059547873,17.26108875,3989.3,3989.2,6.07792351]
[1759059548072,17.76185934,3989.3,3989.2,5.81792351]
[1759059548368,17.78215934,3989.3,3989.2,5.59302351]
[1759059549366,17.78215934,3989.3,3989.2,0.00254136]
[1759059549762,17.78215934,3989.3,3989.2,0.34264136]
[1759059553465,22.78215934,3989.3,3989.2,0.00254136]
[1759059554366,25.98995934,3989.3,3989.2,0.00254136]
[1759059556869,25.98995934,3989.3,3989.2,0.34174136]
[1759059558267,25.98996629,3989.3,3989.2,0.34174136]
[1759059559977,25.98996629,3989.3,3989.2,0.00254136]
[1759059560177,0.0426,3988.7,3988.6,0.3392]
[1759059560469,17.75276629,3988.7,3988.6,0.3392]
[1759059561069,17.7545242,3988.7,3988.6,0.34105094]
[1759059562875,17.7412242,3988.7,3988.6,0.58105094]
[1759059565176,17.6986242,3988.7,3988.6,0.81915094]
[1759059565377,0.66187733,3988.7,3988.6,0.81915094]
[1759059569785,0.16110674,3988.7,3988.6,0.81915094]
[1759059571469,0.16110674,3988.7,3988.6,5.81915094]
[1759059574284,0.16110674,3988.7,3988.6,6.07815094]
[1759059579581,0.16110674,3988.7,3988.6,1.07815094]
[1759059584801,0.16109854,3988.7,3988.6,1.07815094]
[1759059597382,0.16109854,3988.7,3988.6,2.4096631]
[1759059598585,0.16109835,3988.7,3988.6,2.4096631]
[1759059599297,0.16109835,3988.7,3988.6,1.07815094]
[1759059599886,3.2159,3989.7,3989.5,0.134]
[1759059599887,3.2078,3989.7,3989.5,0.134]
[1759059600088,1.03586588,3989.6,3989.5,1.1846]
[1759059600496,17.61711275,3989.6,3989.5,1.1846]
[1759059600694,17.53877346,3989.6,3989.5,1.1846]
[1759059600898,17.54124499,3989.6,3989.5,1.1846]
[1759059601197,0.00247153,3989.6,3989.5,1.1846]
[1759059603603,3.2078,3990.2,3990.1,0.2164]
[1759059603798,0.221,3990.6,3990.5,0.9256]
[1759059604000,17.76025046,3990.6,3990.5,1.1846]
[1759059604599,17.54113066,3990.6,3990.5,1.1846]
[1759059604895,0.0018802,3990.6,3990.5,1.1846]
[1759059605511,3.6633,3991.6,3991.5,0.6897]
[1759059605711,21.20262728,3991.6,3991.5,1.1846]
[1759059606305,17.99482728,3991.6,3991.5,1.1846]
[1759059606606,17.99692589,3991.6,3991.5,1.18674203]
[1759059606802,26.36182589,3991.6,3991.5,0.00214203]
[1759059609905,9.32507902,3991.6,3991.5,0.34144203]
[1759059610107,26.36182589,3991.6,3991.5,0.34144203]
[1759059610610,21.20472589,3991.6,3991.5,0.69184203]
[1759059610998,21.35602589,3991.6,3991.5,0.69184203]
[1759059611202,18.14822589,3991.6,3991.5,0.69184203]
[1759059611613,18.14822589,3991.6,3991.5,0.47544203]
[1759059616108,18.14822589,3991.6,3991.5,0.34144203]
[1759059616408,26.35602589,3991.6,3991.5,0.00214203]
[1759059617705,21.35602589,3991.6,3991.5,0.35094203]
[1759059619911,21.35602589,3991.6,3991.5,0.00214203]
[1759059620314,26.35602589,3991.6,3991.5,0.00214203]
[1759059621104,26.61402589,3991.6,3991.5,0.00214203]
[1759059623011,0.4737,3991.1,3991.0,0.3488]
[1759059623211,17.66174687,3991.1,3991.0,0.3488]
[1759059623810,17.66174687,3991.1,3991.0,0.4872]
[1759059624012,17.66174687,3991.1,3991.0,0.48934533]
[1759059626221,17.66174687,3991.1,3991.0,0.00214533]
[1759059626423,23.42035213,3991.1,3991.0,0.00214533]
[1759059626718,23.42035213,3991.1,3991.0,4.533e-05]
[1759059632021,23.46397567,3991.1,3991.0,4.533e-05]
[1759059632713,64.26397567,3991.1,3991.0,4.533e-05]
[1759059633623,23.46397567,3991.1,3991.0,4.533e-05]
[1759059635724,18.20597567,3991.1,3991.0,0.32294533]
[1759059635925,18.46397567,3991.1,3991.0,0.32294533]
[1759059636720,0.99550526,3991.1,3991.0,0.90104533]
[1759059637618,0.50060526,3991.1,3991.0,0.90104533]
[1759059639027,0.72470526,3991.1,3991.0,0.90104533]
[1759059639326,0.94220526,3991.1,3991.0,0.90104533]
[1759059639826,1.08670526,3991.1,3991.0,0.46134533]
[1759059641026,18.12345213,3991.1,3991.0,0.46134533]
[1759059642432,18.12345213,3991.1,3991.0,0.67494533]
[1759059643122,18.38145213,3991.1,3991.0,0.67494533]
[1759059645734,18.23695213,3991.1,3991.0,0.90104533]
[1759059646229,1.20020526,3991.1,3991.0,0.90104533]
[1759059651829,0.98270526,3991.1,3991.0,0.90104533]
[1759059652132,0.75860526,3991.1,3991.0,0.90104533]
[1759059652323,0.50060526,3991.1,3991.0,0.90104533]
[1759059654244,0.50060526,3991.1,3991.0,5.90104533]
[1759059654629,0.50060526,3991.1,3991.0,6.15904533]
[1759059656337,0.00209861,3991.6,3991.5,0.9341]
[1759059656538,0.50502707,3991.6,3991.5,0.9341]
[1759059657036,0.71762707,3991.6,3991.5,0.9341]
[1759059659231,0.50502707,3991.6,3991.5,0.9341]
[1759059660037,0.71762707,3991.6,3991.5,0.9341]
[1759059661436,0.93022707,3991.6,3991.5,0.9341]
[1759059662033,17.96697394,3991.6,3991.5,0.9341]
[1759059668738,0.93022707,3991.6,3991.5,0.9341]
[1759059672642,1.05652707,3991.6,3991.5,0.476]
[1759059673542,1.05652707,3991.6,3991.5,0.6879]
[1759059673745,0.93022707,3991.6,3991.5,0.6879]
[1759059676155,0.93022707,3991.6,3991.5,0.9002]
[1759059676543,0.71762707,3991.6,3991.5,0.9002]
[1759059681858,17.75437394,3991.6,3991.5,0.9002]
[1759059682455,17.95647394,3991.6,3991.5,0.9002]
[1759059688065,0.50502707,3991.6,3991.5,0.9002]
[1759059690366,0.50502707,3991.6,3991.5,1.4731]